bitfinex/quotes_SOLUSD_20241231
["timestamp","ask_amount","ask_price","bid_price","bid_amount"]
[1735663165419,1.6157,198.28,198.22,144.80182455]
[1735663166224,1.6157,198.28,198.22,135.0]
[1735663167016,23.776884,198.27,198.22,135.0]
[1735663168422,23.776884,198.27,198.18,144.80182455]
[1735663170024,23.776884,198.27,198.19,9.80182455]
[1735663170224,23.776884,198.27,198.2,9.80182455]
[1735663170426,23.776884,198.27,198.19,9.80182455]
[1735663170929,23.776884,198.27,198.18,135.0]
[1735663171121,23.776884,198.27,198.15,135.0]
[1735663171427,23.776884,198.25,198.15,135.0]
[1735663171611,23.776884,198.25,198.15,144.80182455]
[1735663172528,23.776884,198.25,198.16,9.80182455]
[1735663172729,1.6157,198.28,198.15,135.0]
[1735663172918,1.6157,198.28,198.22,9.80182455]
[1735663173706,1.6157,198.28,198.21,144.80182455]
[1735663174224,1.6157,198.28,198.21,150.31198728]
[1735663176220,1.6157,198.28,198.23,15.31198728]
[1735663177128,1.6157,198.28,198.24,15.31198728]
[1735663178215,1.6157,198.28,198.23,15.31198728]
[1735663178656,1.6157,198.28,198.24,15.31198728]
[1735663178833,21.5141,198.33,198.25,15.31198728]
[1735663179037,21.5141,198.33,198.24,15.31198728]
[1735663179211,23.776884,198.32,198.24,15.31198728]
[1735663181336,23.776884,198.32,198.24,150.31198728]
[1735663182135,23.776884,198.32,198.25,15.31198728]
[1735663185453,23.776884,198.28,198.2,135.0]
[1735663185741,23.776884,198.28,198.21,15.31198728]
[1735663186240,23.776884,198.28,198.2,150.31198728]
[1735663186650,21.5141,198.33,198.22,15.31198728]
[1735663187127,23.776884,198.32,198.22,15.31198728]
[1735663189642,21.5141,198.33,198.27,15.31198728]
[1735663191043,21.5141,198.33,198.26,15.31198728]
[1735663191345,23.776884,198.32,198.26,135.0]
[1735663191550,23.776884,198.32,198.26,150.31198728]
[1735663193026,23.776884,198.32,198.26,135.0]
[1735663195563,23.776884,198.32,198.25,15.31198728]
[1735663196758,23.776884,198.32,198.24,150.31198728]
[1735663197463,21.5141,198.33,198.25,15.31198728]
[1735663197670,21.5141,198.33,198.26,15.31198728]
[1735663198137,21.5141,198.33,198.25,15.31198728]
[1735663198342,21.5141,198.33,198.25,9.79575962]
[1735663198533,21.5141,198.33,198.25,144.79575962]
[1735663199860,23.776884,198.32,198.25,135.0]
[1735663201551,23.776884,198.32,198.24,9.79575962]
[1735663201763,23.776884,198.32,198.23,9.79575962]
[1735663201967,23.776884,198.32,198.16,141.1836]
[1735663202172,23.776884,198.28,198.17,144.79575962]
[1735663202471,23.776884,198.26,198.15,144.79575962]
[1735663202645,23.776884,198.26,198.15,135.0]
[1735663203237,23.776884,198.26,198.15,144.79575962]
[1735663203436,23.776884,198.26,198.17,9.79575962]
[1735663203639,1.6571,198.27,198.21,144.79575962]
[1735663203843,1.6571,198.27,198.21,135.0]
[1735663204248,1.6571,198.27,198.21,144.79575962]
[1735663205043,1.6571,198.27,198.22,9.79575962]
[1735663205740,1.6571,198.27,198.22,144.79575962]
[1735663206255,1.6571,198.27,198.23,15.30981372]
[1735663206460,1.6571,198.32,198.23,135.0]
[1735663206673,25.433984,198.32,198.23,150.30981372]
[1735663207160,1.6571,198.32,198.26,15.30981372]
[1735663207545,1.6571,198.32,198.25,15.30981372]
[1735663209877,1.5956,198.38,198.3,15.30981372]
[1735663210078,1.5956,198.38,198.33,15.30981372]
[1735663210260,1.5956,198.38,198.32,150.30981372]
[1735663210765,1.5956,198.38,198.32,135.0]
[1735663211063,1.5956,198.38,198.32,150.30981372]
[1735663211266,1.5956,198.38,198.33,15.30981372]
[1735663211666,1.5956,198.38,198.34,15.30981372]
[1735663211874,1.5956,198.38,198.33,15.30981372]
[1735663212050,1.5956,198.38,198.34,15.30981372]
[1735663212370,1.5956,198.43,198.37,15.30981372]
[1735663212581,1.5956,198.43,198.39,15.30981372]
[1735663213073,1.5956,198.48,198.41,15.30981372]
[1735663213376,1.5956,198.48,198.42,15.30981372]
[1735663213776,1.5956,198.48,198.41,135.0]
[1735663214669,23.776884,198.47,198.41,135.0]
[1735663215055,1.5956,198.48,198.41,135.0]
[1735663215251,23.776884,198.47,198.41,135.0]
[1735663216578,23.776884,198.47,198.38,15.30981372]
[1735663217182,23.776884,198.47,198.4,15.30981372]
[1735663217370,1.5956,198.48,198.41,15.30981372]
[1735663217564,1.5956,198.48,198.42,150.30981372]
[1735663220357,23.776884,198.47,198.42,135.0]
[1735663220868,1.5956,198.48,198.42,135.0]
[1735663221062,1.5956,198.48,198.42,150.30981372]
[1735663221263,1.5956,198.48,198.43,15.30981372]
[1735663221477,20.0,198.51,198.43,15.30981372]
[1735663221866,1.5956,198.52,198.45,15.30981372]
[1735663222364,1.5956,198.52,198.41,6.5665]
[1735663222365,1.5956,198.52,198.46,150.30981372]
[1735663223586,1.5956,198.57,198.51,15.30981372]
[1735663223893,1.5956,198.57,198.52,15.30981372]
[1735663224061,1.5956,198.57,198.53,15.30981372]
[1735663224490,6.2187,198.64,198.55,15.30981372]
[1735663224491,1.629,198.62,198.55,15.30981372]
[1735663224972,1.629,198.62,198.54,15.30981372]
[1735663225374,23.776884,198.61,198.54,15.30981372]
[1735663226490,23.776884,198.61,198.54,150.30981372]
[1735663226985,1.629,198.62,198.55,15.30981372]
[1735663227175,1.629,198.62,198.57,15.30981372]
[1735663228090,1.629,198.67,198.58,135.0]
[1735663228269,1.629,198.67,198.58,150.30981372]
[1735663228694,23.776884,198.66,198.58,150.30981372]
[1735663228995,1.629,198.67,198.59,15.30981372]
[1735663229188,1.629,198.67,198.61,15.30981372]
[1735663229593,1.629,198.67,198.6,15.30981372]
[1735663230180,1.629,198.67,198.58,150.30981372]
[1735663230499,23.776884,198.66,198.58,135.0]
[1735663230697,23.776884,198.66,198.57,150.30981372]
[1735663230870,23.776884,198.66,198.55,15.30981372]
[1735663231060,23.776884,198.66,198.56,15.30981372]
[1735663231481,23.776884,198.66,198.57,15.30981372]
[1735663233967,1.629,198.67,198.59,150.30981372]
[1735663234168,1.629,198.67,198.6,150.30981372]
[1735663234382,1.629,198.67,198.61,15.30981372]
[1735663234577,1.629,198.67,198.61,150.30981372]
[1735663237089,1.6546,198.74,198.61,150.30981372]
[1735663237293,20.0,198.7,198.61,150.30981372]
[1735663237977,23.776884,198.73,198.62,15.30981372]
[1735663238281,1.6546,198.74,198.62,15.30981372]
[1735663238586,1.6546,198.74,198.62,135.0]
[1735663238979,1.6546,198.74,198.62,150.30981372]
[1735663239179,23.776884,198.73,198.62,150.30981372]
[1735663239592,23.776884,198.73,198.62,135.0]
[1735663240989,23.776884,198.69,198.58,150.30981372]
[1735663241291,23.776884,198.69,198.58,135.0]
[1735663241500,23.776884,198.69,198.58,150.30981372]
[1735663241673,20.0,198.66,198.58,135.0]
[1735663241870,25.423084,198.65,198.56,135.0]
[1735663243176,25.423084,198.65,198.57,15.30981372]
[1735663243590,25.423084,198.65,198.58,15.30981372]
[1735663243794,1.6462,198.65,198.56,135.0]
[1735663243978,7.9781,198.7,198.62,15.30981372]
[1735663244186,1.6462,198.7,198.62,150.30981372]
[1735663244386,1.6462,198.7,198.63,15.30981372]
[1735663244586,23.776884,198.69,198.62,150.30981372]
[1735663245088,1.6462,198.7,198.63,15.30981372]
[1735663246605,1.6462,198.7,198.63,150.30981372]
[1735663248913,1.6462,198.7,198.64,15.30981372]
[1735663249615,1.6462,198.7,198.64,150.30981372]
[1735663250424,23.776884,198.69,198.64,135.0]
[1735663252714,23.776884,198.69,198.6,15.30981372]
[1735663252913,23.776884,198.65,198.59,135.0]
[1735663253417,23.776884,198.65,198.55,150.30981372]
[1735663253605,25.423084,198.61,198.54,150.30981372]
[1735663254507,25.423084,198.61,198.54,135.0]
[1735663256015,25.423084,198.61,198.54,150.30981372]
[1735663256591,1.6462,198.61,198.57,15.30981372]
[1735663257593,1.6462,198.61,198.56,15.30981372]
[1735663258405,1.6462,198.61,198.54,135.0]
[1735663258594,1.6462,198.61,198.53,15.30981372]
[1735663258792,1.6462,198.61,198.52,135.0]
[1735663258793,1.6462,198.61,198.54,15.30981372]
[1735663260889,1.6462,198.61,198.52,150.30981372]
[1735663261716,1.6462,198.61,198.53,150.30981372]
[1735663262598,1.6462,198.61,198.52,15.30981372]
[1735663263423,20.0,198.59,198.51,15.30981372]
[1735663264489,23.776884,198.58,198.5,150.30981372]
[1735663264700,23.776884,198.58,198.48,15.30981372]
[1735663264901,23.776884,198.58,198.47,15.30981372]
[1735663265596,23.776884,198.54,198.46,150.30981372]
[1735663265811,1.6462,198.61,198.41,7.8141]
[1735663265812,21.5781,198.53,198.47,135.0]
[1735663266000,21.5781,198.53,198.45,15.30981372]
[1735663266398,21.5781,198.53,198.46,15.30981372]
[1735663266704,1.5781,198.53,198.48,15.30981372]
[1735663266912,1.5781,198.53,198.49,15.30981372]
[1735663267116,1.5781,198.6,198.52,15.30981372]
[1735663268225,1.5781,198.6,198.51,150.30981372]
[1735663268432,1.5781,198.6,198.51,135.0]
[1735663269034,20.0,198.56,198.44,136.5107]
[1735663269218,20.0,198.56,198.48,135.0]
[1735663270535,20.0,198.56,198.47,135.0]
[1735663270706,23.776884,198.55,198.47,135.0]
[1735663270912,1.5138,198.54,198.47,135.0]
[1735663273715,1.5138,198.54,198.44,135.0]
[1735663274815,20.0,198.52,198.44,135.0]
[1735663275012,20.0,198.52,198.42,135.0]
[1735663275013,20.0,198.48,198.42,135.0]
[1735663275239,1.5138,198.47,198.38,135.0]
[1735663275439,23.776884,198.46,198.38,135.0]
[1735663278518,1.5138,198.47,198.38,135.0]
[1735663279126,23.776884,198.46,198.38,135.0]
[1735663279326,20.0,198.43,198.33,135.0]
[1735663281039,23.776884,198.42,198.3,15.30981372]
[1735663281230,23.776884,198.42,198.31,35.30981372]
[1735663281427,26.5138,198.47,198.31,135.0]
[1735663281631,20.0,198.41,198.31,135.0]
[1735663282227,20.0,198.41,198.31,150.30981372]
[1735663282921,20.0,198.41,198.32,15.30981372]
[1735663283341,20.0,198.41,198.31,150.30981372]
[1735663285143,20.0,198.41,198.31,135.0]
[1735663285857,20.0,198.41,198.31,150.30981372]
[1735663288751,20.0,198.41,198.32,135.0]
[1735663290954,20.0,198.41,198.33,15.30981372]
[1735663291449,20.0,198.41,198.32,150.30981372]
[1735663293063,1.5138,198.45,198.36,15.30981372]
[1735663293236,1.5138,198.45,198.37,15.30981372]
[1735663293555,1.5138,198.45,198.36,15.30981372]
[1735663294941,1.5138,198.45,198.35,150.30981372]
[1735663295355,20.0,198.41,198.35,135.0]
[1735663295558,20.0,198.39,198.28,135.0]
[1735663295761,23.776884,198.38,198.28,150.30981372]
[1735663296081,1.5904,198.37,198.28,135.0]
[1735663296267,23.776884,198.36,198.28,135.0]
[1735663297472,1.5904,198.37,198.28,150.30981372]
[1735663297657,1.5904,198.37,198.29,15.30981372]
[1735663297860,1.5904,198.37,198.28,150.30981372]
[1735663300177,20.0,198.35,198.28,135.0]
[1735663300346,23.776884,198.34,198.24,150.30981372]
[1735663300747,23.776884,198.34,198.24,135.0]
[1735663300943,20.0,198.31,198.24,135.0]
[1735663301180,20.0,198.31,198.23,135.0]
[1735663301471,1.6479,198.3,198.23,135.0]
[1735663305767,23.776884,198.29,198.2,135.0]
[1735663306884,1.6479,198.3,198.21,15.30981372]
[1735663307074,1.6479,198.3,198.22,15.30981372]
[1735663307373,1.6479,198.3,198.21,15.30981372]
[1735663307573,1.6479,198.3,198.2,150.30981372]
[1735663308774,1.6479,198.3,198.21,15.30981372]
[1735663308971,20.0,198.26,198.2,135.0]
[1735663309277,23.776884,198.25,198.14,135.0]
[1735663309575,1.502,198.24,198.14,135.0]
[1735663309771,23.776884,198.23,198.14,135.0]
[1735663310780,20.0,198.2,198.12,135.0]
[1735663311573,20.0,198.2,198.12,150.30981372]
[1735663313165,20.0,198.2,198.12,135.0]
[1735663313382,1.502,198.24,198.16,15.30981372]
[1735663313562,1.502,198.24,198.14,15.30981372]
[1735663313764,23.776884,198.23,198.13,15.30981372]
[1735663314065,23.776884,198.23,198.12,135.0]
[1735663314677,23.776884,198.23,198.12,150.30981372]
[1735663314879,20.0,198.2,198.12,150.30981372]
[1735663315476,1.502,198.24,198.16,150.30981372]
[1735663315686,1.502,198.24,198.18,15.30981372]
[1735663318386,1.502,198.24,198.19,15.30981372]
[1735663318778,1.502,198.24,198.2,15.30981372]
[1735663320391,1.6561,198.29,198.22,15.30981372]
[1735663320781,1.6561,198.29,198.23,15.30981372]
[1735663321164,1.6561,198.29,198.22,15.30981372]
[1735663321895,1.6561,198.29,198.23,15.30981372]
[1735663322300,1.6561,198.29,198.26,15.30981372]
[1735663322595,1.6561,198.29,198.26,135.0]
[1735663322780,1.6561,198.29,198.26,150.30981372]
[1735663323282,1.6561,198.34,198.26,150.30981372]
[1735663323489,1.6561,198.34,198.29,15.30981372]
[1735663325304,23.776884,198.39,198.29,150.30981372]
[1735663325995,23.776884,198.39,198.3,15.30981372]
[1735663326307,6.2656,198.4,198.31,15.30981372]
[1735663326601,6.2656,198.4,198.3,15.30981372]
[1735663327383,20.0,198.37,198.3,15.30981372]
[1735663328078,26.2656,198.46,198.33,150.30981372]
[1735663328407,20.0,198.39,198.33,135.0]
[1735663332506,1.5443,198.48,198.38,150.30981372]
[1735663332686,1.5443,198.53,198.42,150.30981372]
[1735663332890,1.5443,198.53,198.43,150.30981372]
[1735663333203,1.5443,198.53,198.44,15.30981372]
[1735663333408,1.5443,198.53,198.45,15.30981372]
[1735663333706,1.5443,198.53,198.45,150.30981372]
[1735663334212,21.5443,198.53,198.45,150.30981372]
[1735663335292,1.5443,198.53,198.46,150.30981372]
[1735663335497,1.5443,198.58,198.47,15.30981372]
[1735663335688,23.776884,198.57,198.47,15.30981372]
[1735663336002,20.0,198.54,198.47,135.0]
[1735663336728,23.776884,198.53,198.43,135.0]
[1735663336890,20.0,198.49,198.38,141.5711]
[1735663337216,20.0,198.43,198.38,135.0]
[1735663337393,20.0,198.43,198.34,135.0]
[1735663337587,20.0,198.43,198.33,135.0]
[1735663338010,23.776884,198.42,198.33,135.0]
[1735663340514,1.5443,198.5,198.31,31.04718538]
[1735663340515,1.5443,198.5,198.38,24.47608538]
[1735663340817,1.5443,198.5,198.38,159.47608538]
[1735663341212,1.5443,198.5,198.4,159.47608538]
[1735663341394,1.5443,198.5,198.41,159.47608538]
[1735663342020,20.0,198.49,198.41,135.0]
[1735663343026,23.776884,198.49,198.41,135.0]
[1735663344527,20.0,198.47,198.41,135.0]
[1735663345204,1.5443,198.5,198.41,135.0]
[1735663345607,20.0,198.49,198.41,135.0]
[1735663347029,20.0,198.49,198.41,159.47608538]
[1735663347526,20.0,198.49,198.41,135.0]
[1735663347697,20.0,198.49,198.41,159.47608538]
[1735663348808,20.0,198.49,198.41,135.0]
[1735663349005,20.0,198.49,198.41,159.47608538]
[1735663349410,1.5443,198.5,198.44,24.47608538]
[1735663349621,8.79065401,198.62,198.44,24.47608538]
[1735663349622,6.5168,198.57,198.45,24.47608538]
[1735663350102,6.5168,198.57,198.47,24.47608538]
[1735663350731,20.0,198.54,198.47,24.47608538]
[1735663351229,20.0,198.54,198.46,24.47608538]
[1735663353716,20.0,198.54,198.49,24.47608538]
[1735663354326,20.0,198.54,198.48,24.47608538]
[1735663357630,20.0,198.54,198.47,24.47608538]
[1735663359635,23.776884,198.56,198.48,24.47608538]
[1735663359933,1.6171,198.59,198.51,24.47608538]
[1735663360307,21.6171,198.59,198.51,24.47608538]
[1735663360908,1.6171,198.59,198.53,15.26520897]
[1735663361117,1.6171,198.59,198.52,15.26520897]
[1735663361316,21.6171,198.59,198.51,15.26520897]
[1735663361637,21.6171,198.59,198.52,15.26520897]
[1735663361935,1.6171,198.59,198.53,15.26520897]
[1735663362315,1.6171,198.59,198.54,15.26520897]
[1735663362931,1.6171,198.59,198.53,15.26520897]
[1735663363117,1.6171,198.59,198.54,15.26520897]
[1735663363315,1.6171,198.59,198.53,15.26520897]
[1735663363513,23.776884,198.58,198.52,15.26520897]
[1735663363718,23.776884,198.58,198.51,135.0]
[1735663366541,23.776884,198.58,198.48,15.26520897]
[1735663367211,23.776884,198.54,198.48,15.26520897]
[1735663367819,23.776884,198.54,198.47,15.26520897]
[1735663368020,23.776884,198.54,198.46,135.0]
[1735663368855,23.776884,198.54,198.46,150.26520897]
[1735663370249,23.776884,198.54,198.48,15.26520897]
[1735663371127,1.6171,198.59,198.5,15.26520897]
[1735663371330,23.776884,198.58,198.5,15.26520897]
[1735663372248,20.0,198.55,198.48,150.26520897]
[1735663373143,23.776884,198.54,198.48,135.0]
[1735663373743,23.776884,198.54,198.48,150.26520897]
[1735663374645,21.6171,198.59,198.48,15.26520897]
[1735663375254,20.0,198.55,198.49,15.26520897]
[1735663377440,23.776884,198.58,198.49,15.26520897]
[1735663377648,23.776884,198.58,198.5,15.26520897]
[1735663377850,23.776884,198.58,198.51,15.26520897]
[1735663380063,1.6171,198.59,198.52,15.26520897]
[1735663380250,23.776884,198.58,198.52,15.26520897]
[1735663380552,23.776884,198.58,198.51,15.26520897]
[1735663380929,23.776884,198.58,198.5,15.26520897]
[1735663381136,1.6797,198.64,198.56,15.26520897]
[1735663381333,1.6797,198.64,198.58,15.26520897]
[1735663381535,1.6797,198.64,198.59,15.26520897]
[1735663381730,1.6797,198.64,198.59,150.26520897]
[1735663382437,1.6797,198.64,198.6,15.26520897]
[1735663382765,1.6797,198.64,198.59,150.26520897]
[1735663383054,0.024,198.64,198.59,150.26520897]
[1735663383266,0.024,198.64,198.6,15.26520897]
[1735663384358,0.024,198.64,198.59,150.26520897]
[1735663384654,23.800884,198.64,198.59,135.0]
[1735663384957,23.800884,198.64,198.58,15.26520897]
[1735663385967,0.024,198.64,198.59,15.26520897]
[1735663386352,0.024,198.64,198.61,15.26520897]
[1735663388832,0.024,198.64,198.63,15.26520897]
[1735663394156,0.024,198.64,198.63,150.26520897]
[1735663401867,0.024,198.64,198.63,135.0]
[1735663402173,0.024,198.64,198.63,150.26520897]
[1735663402976,1.5851,198.75,198.66,20.0]
[1735663403144,1.5851,198.75,198.7,150.24120897]
[1735663403347,1.5851,198.79,198.72,150.24120897]
[1735663403549,1.5851,198.79,198.73,15.26520897]
[1735663404375,1.5851,198.79,198.72,150.24120897]
[1735663405257,1.5851,198.79,198.73,15.26520897]
[1735663408275,1.5851,198.79,198.73,9.74997733]
[1735663408576,23.776884,198.78,198.66,154.976]
[1735663408761,23.776884,198.78,198.69,9.74997733]
[1735663409664,23.776884,198.78,198.7,9.74997733]
[1735663410248,23.776884,198.78,198.7,15.2387231]
[1735663411691,1.5851,198.79,198.73,15.2387231]
[1735663411894,21.5851,198.79,198.72,15.2387231]
[1735663412688,21.5851,198.79,198.71,150.2147231]
[1735663414290,21.5851,198.79,198.72,15.2387231]
[1735663418084,21.5851,198.79,198.71,150.2147231]
[1735663418879,21.5851,198.79,198.72,15.2387231]
[1735663419782,21.5851,198.79,198.73,15.2387231]
[1735663419967,21.5851,198.79,198.72,15.2387231]
[1735663423970,21.5851,198.79,198.71,150.2147231]
[1735663424577,21.5851,198.79,198.71,149.7147231]
[1735663425776,43.776884,198.83,198.72,15.2387231]
[1735663425986,43.776884,198.83,198.73,15.2387231]
[1735663427065,43.776884,198.83,198.72,15.2387231]
[1735663427495,43.776884,198.83,198.74,15.2387231]
[1735663427688,43.776884,198.83,198.73,15.2387231]
[1735663427991,43.776884,198.83,198.74,15.2387231]
[1735663428676,43.776884,198.83,198.75,15.2387231]
[1735663428986,43.776884,198.83,198.74,15.2387231]
[1735663430779,43.776884,198.83,198.71,134.476]
[1735663430982,43.776884,198.83,198.74,15.2387231]
[1735663432192,43.776884,198.83,198.74,9.74915006]
[1735663432907,43.776884,198.83,198.73,9.74915006]
[1735663433092,43.776884,198.83,198.71,134.476]
[1735663433297,43.776884,198.83,198.72,9.74915006]
[1735663433495,43.776884,198.83,198.73,9.74915006]
[1735663433690,43.776884,198.83,198.74,9.74915006]
[1735663433886,43.776884,198.83,198.75,9.74915006]
[1735663434089,43.776884,198.83,198.74,9.74915006]
[1735663436924,43.776884,198.83,198.75,9.74915006]
[1735663437804,43.776884,198.83,198.71,134.476]
[1735663437982,43.776884,198.83,198.74,9.74915006]
[1735663438191,43.776884,198.83,198.75,9.74915006]
[1735663438687,43.776884,198.83,198.76,9.74915006]
[1735663438886,43.776884,198.83,198.77,9.74915006]
[1735663439109,43.776884,198.83,198.76,9.74915006]
[1735663439301,21.6431,198.84,198.76,9.74915006]
[1735663439603,23.776884,198.83,198.76,9.74915006]
[1735663440112,23.776884,198.83,198.74,9.74915006]
[1735663441286,23.776884,198.83,198.75,9.74915006]
[1735663441492,23.776884,198.83,198.76,9.74915006]
[1735663441696,23.776884,198.83,198.77,9.74915006]
[1735663441901,23.776884,198.83,198.76,9.74915006]
[1735663442294,23.776884,198.83,198.71,134.476]
[1735663442500,23.776884,198.83,198.75,9.74915006]
[1735663442689,23.776884,198.83,198.77,9.74915006]
[1735663443089,23.776884,198.83,198.71,134.476]
[1735663443506,23.776884,198.83,198.75,144.22515006]
[1735663443700,20.0,198.8,198.75,134.476]
[1735663444004,20.0,198.8,198.75,144.22515006]
[1735663444301,1.6431,198.84,198.78,9.74915006]
[1735663444808,1.6431,198.84,198.77,9.74915006]
[1735663445302,21.6431,198.84,198.77,9.74915006]
[1735663447309,23.776884,198.79,198.69,9.74915006]
[1735663447506,23.776884,198.79,198.71,144.22515006]
[1735663448007,1.6431,198.84,198.75,9.74915006]
[1735663448384,20.0,198.8,198.73,9.74915006]
[1735663451813,20.0,198.8,198.75,9.74915006]
[1735663452204,20.0,198.8,198.74,9.74915006]
[1735663454024,9.03277468,198.87,198.79,9.74915006]
[1735663454235,9.49940539,198.89,198.81,9.74915006]
[1735663454716,23.776884,198.88,198.81,9.74915006]
[1735663454902,1.6023,198.89,198.81,9.74915006]
[1735663455210,1.6023,198.89,198.81,144.22515006]
[1735663455398,21.6023,198.89,198.82,9.74915006]
[1735663455820,21.6023,198.89,198.81,144.22515006]
[1735663456005,23.776884,198.88,198.81,144.22515006]
[1735663456192,1.6023,198.89,198.81,144.22515006]
[1735663456695,23.776884,198.88,198.81,144.22515006]
[1735663456897,1.6023,198.92,198.85,9.74915006]
[1735663457194,1.6023,198.92,198.83,9.74915006]
[1735663457389,23.776884,198.91,198.83,9.74915006]
[1735663457593,23.776884,198.91,198.84,9.74915006]
[1735663460699,23.776884,198.91,198.83,9.74915006]
[1735663462099,23.776884,198.91,198.84,9.74915006]
[1735663462699,20.0,198.88,198.81,134.476]
[1735663463006,23.776884,198.85,198.76,9.74915006]
[1735663463230,23.776884,198.85,198.78,9.74915006]
[1735663463939,1.6023,198.86,198.8,9.74915006]
[1735663464122,1.6023,198.86,198.82,9.74915006]
[1735663465030,1.6023,198.86,198.75,140.5073]
[1735663465225,1.6023,198.86,198.81,9.74915006]
[1735663467097,23.776884,198.89,198.82,9.74915006]
[1735663467426,20.0,198.88,198.83,9.74915006]
[1735663467799,43.776884,198.9,198.83,9.74915006]
[1735663469024,43.776884,198.9,198.82,144.22515006]
[1735663471109,12.8237412,198.95,198.89,9.74915006]
[1735663471110,9.04124009,198.95,198.89,9.74915006]
[1735663471317,10.57904009,198.96,198.89,9.74915006]
[1735663471609,20.0,198.93,198.84,134.476]
[1735663471817,23.776884,198.95,198.87,9.74915006]
[1735663474004,20.0,198.92,198.85,9.74915006]
[1735663474334,23.776884,198.87,198.77,142.3351]
[1735663475115,23.776884,198.87,198.77,140.7222]
[1735663476049,23.776884,198.83,198.72,152.08425006]
[1735663476538,23.776884,198.83,198.74,9.74915006]
[1735663477816,23.776884,198.83,198.72,142.3351]
[1735663478022,23.776884,198.79,198.7,134.476]
[1735663479544,23.776884,198.79,198.72,9.74915006]
[1735663479733,1.5378,198.85,198.75,9.74915006]
[1735663480249,20.0,198.83,198.7,134.476]
[1735663480416,1.5378,198.85,198.78,9.74915006]
[1735663480630,1.5378,198.85,198.79,9.74915006]
[1735663480948,23.776884,198.84,198.79,9.74915006]
[1735663481526,7.7663,198.89,198.79,9.74915006]
[1735663481527,43.776884,198.85,198.79,9.74915006]
[1735663482327,43.776884,198.85,198.78,15.22575312]
[1735663482652,1.6618,198.89,198.79,15.22575312]
[1735663483245,23.776884,198.88,198.79,15.22575312]
[1735663483444,21.6618,198.89,198.8,15.22575312]
[1735663483742,21.6618,198.89,198.79,15.22575312]
[1735663483957,23.776884,198.88,198.79,15.22575312]
[1735663484324,20.0,198.85,198.76,141.0788]
[1735663484541,20.0,198.85,198.76,134.476]
[1735663485430,20.0,198.85,198.73,149.70175312]
[1735663485636,20.0,198.85,198.74,15.22575312]
[1735663485862,20.0,198.85,198.76,15.22575312]
[1735663486034,20.0,198.88,198.78,15.22575312]
[1735663486338,20.0,198.88,198.77,15.22575312]
[1735663486538,23.776884,198.88,198.77,149.70175312]
[1735663486738,23.776884,198.85,198.77,149.70175312]
[1735663487125,23.776884,198.85,198.77,134.476]
[1735663488448,23.776884,198.85,198.77,149.70175312]
[1735663489745,23.776884,198.85,198.78,15.22575312]
[1735663490128,23.776884,198.85,198.78,134.476]
[1735663491434,20.0,198.82,198.72,149.70175312]
[1735663491641,20.0,198.82,198.71,141.0788]
[1735663491642,23.776884,198.81,198.71,141.0788]
[1735663492431,9.93514882,198.87,198.72,15.22575312]
[1735663492650,12.81222038,198.87,198.78,15.22575312]
[1735663492951,9.02797156,198.87,198.78,15.22575312]
[1735663493337,23.776884,198.88,198.78,15.22575312]
[1735663493749,23.776884,198.88,198.76,149.70175312]
[1735663494176,23.776884,198.84,198.76,134.476]
[1735663494645,20.0,198.81,198.71,141.0788]
[1735663495048,23.776884,198.8,198.71,141.0788]
[1735663495432,23.776884,198.8,198.71,156.30455312]
[1735663495942,23.776884,198.8,198.71,141.0788]
[1735663496351,9.55890539,198.89,198.74,15.22575312]
[1735663496538,9.55890539,198.89,198.79,15.22575312]
[1735663496749,12.81165638,198.88,198.79,15.22575312]
[1735663496952,23.776884,198.87,198.79,15.22575312]
[1735663497460,23.776884,198.88,198.79,15.22575312]
[1735663498556,23.776884,198.88,198.78,15.22575312]
[1735663498939,23.776884,198.88,198.79,15.22575312]